[Event "French-ch U12-U14 2024"]
[Site "Agen"]
[Date "2024.04.18"]
[Round "6.17"]
[White "Rodriguez, Augustin"]
[Black "Pon Le Brun, Gregoire"]
[Result "1-0"]
[ECO "B52"]
[WhiteElo "2001"]
[BlackElo "1900"]
[Annotator "TA"]
[PlyCount "134"]
[EventDate "2024.04.14"]
[EventType "swiss"]
[EventCountry "FRA"]
[SourceTitle "playchess.com"]
[Source "ChessBase"]
[SourceQuality "1"]
[TimeControl "5400+30"]

{[%evp 12,134,29,15,19,16,23,8,32,12,20,11,19,14,14,1,29,10,14,-8,0,0,15,0,0,0,0,0,0,-33,-30,-48,-46,-47,-54,-88,-96,-88,-88,-138,-132,-146,-145,-145,-106,-102,-62,-128,-127,-131,-125,-124,-112,-200,0,0,0,0,0,0,0,0,0,0,0,0,0,0,0,0,0,-250,-245,-253,-253,-233,-246,-266,-275,-263,-125,-108,0,-235,-101,-105,-114,-110,-86,-195,-194,-154,50,60,72,78,176,68,182,186,188,106,508,491,29974,29975,29975,29976,29976,29977,29977,29978,29978,29977,29977,29978,29978,29979,29979,29980,29981,29982,29982,29983,29983]} 1. e4 {[%emt 0:00:03]} c5 {[%emt 0:00:12]} 2. Nf3 {[%emt 0:00:06]} d6 {[%emt 0:00:10]} 3. Bb5+ {[%emt 1:31:51]} Bd7 {[%emt 0:08:08]} 4. Bxd7+ {[%emt 0:00:00]} Qxd7 {[%emt 0:00:14]} 5. O-O {[%emt 0:00:00]} Nc6 {[%emt 0:02:43]} 6. c3 {[%emt 0:00:00]} Nf6 {[%emt 0:02:03][%cal Bg8f6,Bf6e4,Be4d2][%mdl 32]} 7. Qe2 {[%emt 0:00:00]} g6 {[%emt 0:07:21]} 8. d4 {[%emt 0:00:00]} cxd4 {[%emt 0:01:57]} 9. cxd4 {[%emt 0:00:00]} d5 {[%emt 0:00:29] The position is equal.} 10. e5 {[%emt 0:00:00]} Ne4 {[%emt 0:00:27]} 11. Nbd2 {[%emt 0:00:00]} Nxd2 {[%emt 0:02:51]} 12. Bxd2 {[%emt 0:00:00]} Bg7 {[%emt 0:01:10]} 13. Rfe1 {[%emt 0:00:00]} h6 {[%emt 0:07:38]} 14. Bc3 {[%emt 0:00:00]} O-O {[%emt 0:21:41]} 15. b4 {[%emt 0:00:00]} a6 {[%emt 0:03:01]} 16. a4 {[%emt 0:00:00]} Rfc8 {[%emt 0:04:55][%cal Oc6e5]} 17. Qd3 {[%emt 0:00:00][%cal Oe5e6]} Qf5 {[%emt 0:07:32]} 18. Qxf5 {[%emt 0:00:00]} gxf5 {[%emt 0:00:38]} 19. Rec1 {[%emt 0:00:27]} (19. b5 $2 Nxe5 20. Nxe5 Rxc3 21. bxa6 bxa6 $19 (21... Rxa6 $2 22. g3 $17)) 19... e6 {[%emt 0:04:33]} 20. Ne1 {[%emt 0:02:57]} Na7 {[%emt 0:03:18]} 21. Nd3 {[%emt 0:00:43]} Rc4 {[%emt 0:02:46]} 22. Nb2 {[%emt 0:01:04]} Rc7 {[%emt 0:05:59]} 23. Nd3 {[%emt 0:04:12][%cal Ob4b5]} Rac8 $1 {[%emt 0:01:57]} 24. Bb2 {[%emt 0:00:07]} Rc4 {[%emt 0:03:35]} 25. Ra3 {[%emt 0:00:58]} (25. Kf1 $142) 25... Rxc1+ {[%emt 0:01:16]} 26. Nxc1 {[%emt 0:00:31]} Bf8 {[%emt 0:01:28]} 27. Nd3 {[%emt 0:00:29]} b6 {[%emt 0:00:34] Prevents Nc5} 28. Kf1 {[%emt 0:00:30]} Rc4 {[%emt 0:00:40]} 29. Rb3 {[%emt 0:00:31]} (29. a5 $1 $15 b5 (29... Bxb4 $2 30. axb6 Nc6 31. Rxa6 $18) 30. Bc3) 29... Nc6 $17 {[%emt 0:01:45][%csl LRb4,LRd4][%cal Rc6b4]} 30. b5 {[%emt 0:00:29]} Na5 {[%emt 0:02:43]} (30... Nxd4 $2 31. Bxd4 axb5 32. Be3 (32. Bxb6 bxa4 33. Rb5 h5 $18) 32... bxa4 33. Rxb6 $18) 31. Rc3 {[%emt 0:00:17]} Rxa4 {[%emt 0:00:16]} 32. Rc8 {[%emt 0:00:43]} (32. bxa6 $17 {was the only chance.} Nc4 (32... Rxd4 $2 33. a7 $18) 33. Bc1) 32... Nc4 $2 {[%emt 0:01:16]} (32... axb5 $19 {...Nc4 is the strong threat.} 33. g3 Nb3) 33. Bc1 $11 {[%emt 0:00:31]} Kg7 {[%emt 0:00:50]} 34. Nf4 {[%emt 0:00:30]} Ra1 {[%emt 0:00:33]} 35. Nh5+ {[%emt 0:00:10]} Kg6 {[%emt 0:00:24]} 36. Nf4+ {[%emt 0:00:14]} Kh7 {[%emt 0:00:38]} 37. Rxf8 {[%emt 0:00:13]} Rxc1+ {[%emt 0:00:12][%mdl 4096] Endgame. KRN-KRN} 38. Ke2 {[%emt 0:00:03]} Kg7 {[%emt 0:00:18]} 39. Ra8 {[%emt 0:00:23]} axb5 {[%emt 0:00:31]} 40. Nh5+ {[%emt 0:01:14]} Kg6 {[%emt 0:00:10]} 41. Nf6 {[%emt 0:01:00]} (41. Nf4+ $1 $11 Kh7 42. Ra7) 41... f4 $1 $19 {[%emt 0:00:48]} 42. Rg8+ {[%emt 0:00:37]} Kf5 {[%emt 0:00:03]} 43. g4+ {[%emt 0:00:35]} fxg3 {[%emt 0:00:09]} 44. hxg3 {[%emt 0:00:22]} Rc2+ $1 {[%emt 0:01:48]} (44... b4 45. Rg4 $17) 45. Kf3 {[%emt 0:00:39][%csl Gf3,Gf6,Gg8][%cal Rg3g4]} Rc3+ {[%emt 0:00:48]} (45... Nd2+ $1 $19 46. Ke3 Nc4+ 47. Kf3 Nxe5+ (47... Rc3+ 48. Ke2 $11) 48. dxe5 Kxe5 49. Ng4+ Kd6 50. Nxh6 Rc7) 46. Ke2 $17 {[%emt 0:00:25]} Rc2+ {[%emt 0:00:19]} (46... b4 47. Rg4 $15) (46... Ra3 $1 $17 47. Ne8 Ra2+ 48. Kf3 Nxe5+ (48... Ra3+ $2 49. Ke2 $19) 49. dxe5 Kxe5) 47. Kf3 $19 {[%emt 0:00:05][%csl Gf3,Gf6,Gg8][%cal Rg3g4] [#]} Nxe5+ {[%emt 0:00:28]} 48. dxe5 $17 {[%emt 0:00:05]} Kxe5 $19 {[%emt 0:00:06] KRN-KR} 49. Nd7+ {[%emt 0:00:41]} Kd4 {[%emt 0:00:55] Threatens to win with ...Rc7.} 50. Nxb6 {[%emt 0:00:47]} (50. Rb8 $17 {was worth a try.}) 50... b4 {[%emt 0:00:27] White must now prevent ...Ra2.} 51. Na4 {[%emt 0:00:57]} Ra2 $2 {[%emt 0:00:17]} ({Black should try} 51... Kc4 $17 {And now ...Kb5 would win.} 52. Rc8+ Kb3 53. Nc5+ Ka2 54. Ra8+ Kb2) 52. Rg4+ $14 {[%emt 0:00:07]} Ke5 {[%emt 0:00:53]} 53. Rxb4 {[%emt 0:00:02]} f5 {[%emt 0:00:15] [#]} (53... h5 $16 54. Kg2 d4) 54. Nc5 {[%emt 0:00:27]} (54. Nb2 $1 $18) 54... Ra3+ {[%emt 0:00:51]} (54... Kd6 $1 $14 55. Nd3 e5 56. Rb6+ (56. Kg2 e4 $16) 56... Kc7 57. Rc6+ (57. Rxh6 e4+ 58. Ke3 exd3 $11) 57... Kxc6 58. Nb4+ (58. Nxe5+ $2 Kc5 $19) 58... Kc5 59. Nxa2 d4) 55. Ke2 $18 {[%emt 0:00:14]} Ra2+ {[%emt 0:00:26]} 56. Ke3 {[%emt 0:00:10]} (56. Kf1 $18) 56... d4+ $2 {[%emt 0:00:30][%mdl 8192] Loses the game.} 57. Rxd4 {[%emt 0:00:20][%cal Rc5d7]} Ra3+ {[%emt 0:00:33]} (57... Kf6 $18 58. Rd6 f4+ 59. gxf4 (59. Kxf4 Rxf2+ 60. Kg4 Re2 $18) 59... Kf5) 58. Rd3 {[%emt 0:01:00] White mates.} Rxd3+ {[%emt 0:00:20]} 59. Nxd3+ {[%emt 0:00:09] KN-K3P} Kd5 {[%emt 0:00:14]} 60. f4 {[%emt 0:01:56]} Kc4 {[%emt 0:00:08]} 61. Ne5+ {[%emt 0:00:16]} Kc5 {[%emt 0:00:24]} 62. Nf7 {[%emt 0:00:22]} h5 {[%emt 0:00:03]} 63. Ne5 {[%emt 0:00:44]} Kd5 {[%emt 0:00:06]} 64. Nd7 {[%emt 0:00:29]} Kd6 {[%emt 0:00:11]} 65. Nf6 {[%emt 0:00:20]} Ke7 {[%emt 0:00:17]} 66. Nxh5 {[%emt 0:00:06]} Kf7 {[%emt 0:00:04]} 67. Kd4 {[%emt 0:00:17]} Kg6 {[%emt 0:00:14] Weighted Error Value: White=0.25 (precise) /Black=0.49.  Loses game:     	White=1     	Black=1      Missed win:     	---       	Black=1      Mistake:       	White=6     	Black=7      Inaccurate:     	White=2     	Black=2      OK:         	White=19    	Black=18     Best:        	White=8     	Black=3      Strong:       	---       	Black=3} 1-0

[Event "French-ch U12-U14 2024"]
[Site "Agen"]
[Date "2024.04.18"]
[Round "6.18"]
[White "Baury, Noe"]
[Black "Breuil, Virgile"]
[Result "0-1"]
[ECO "C54"]
[WhiteElo "1991"]
[BlackElo "2307"]
[Annotator "TA"]
[PlyCount "60"]
[EventDate "2024.04.14"]
[EventType "swiss"]
[EventCountry "FRA"]
[SourceTitle "playchess.com"]
[Source "ChessBase"]
[SourceQuality "1"]
[TimeControl "5400+30"]

{[%evp 17,60,0,16,0,25,12,35,35,19,0,0,0,0,-67,-93,-102,-113,-117,-102,-114,-64,-72,-81,-112,-78,-127,-82,-106,-102,-114,-84,-98,-83,-185,-180,-215,-206,-294,-294,-287,-292,-400,-240,-1054,-1029]} 1. e4 {[%emt 0:00:04]} e5 {[%emt 0:00:18]} 2. Nf3 {[%emt 0:00:10]} Nc6 {[%emt 0:00:12]} 3. Bc4 {[%emt 0:00:25]} Bc5 {[%emt 0:00:31]} 4. c3 {[%emt 0:00:21]} Nf6 {[%emt 0:00:17]} 5. d4 {[%emt 0:00:29]} exd4 {[%emt 0:00:34]} 6. e5 {[%emt 0:00:31]} d5 {[%emt 0:00:38]} 7. Bb5 {[%emt 0:00:33]} Ne4 {[%emt 0:00:31]} 8. cxd4 {[%emt 0:00:35]} Bb6 {[%emt 0:00:52]} 9. Nc3 {[%emt 0:00:42]} O-O {[%emt 0:02:44]} 10. Be3 {[%emt 0:02:39]} h6 {[%emt 0:02:20]} 11. Rc1 {[%emt 0:12:30]} Ne7 {[%emt 0:01:37]} 12. Bd3 {[%emt 0:07:05] White is slightly better.} f5 {[%emt 0:04:48]} 13. exf6 {[%emt 0:01:19]} Nxf6 {[%emt 0:00:24]} 14. Qc2 {[%emt 0:16:50]} Nc6 {[%emt 0:10:20]} 15. a3 {[%emt 0:03:35]} (15. Bb5 $11) 15... Bg4 $15 {[%emt 0:02:20]} 16. Na4 {[%emt 0:04:01]} Bxf3 {[%emt 0:06:24]} 17. Nxb6 {[%emt 0:01:46]} Bxg2 {[%emt 0:00:59]} (17... cxb6 {simplifies} 18. gxf3 Nh5 19. Qd1 Qh4) 18. Rg1 {[%emt 0:00:26]} axb6 {[%emt 0:01:31]} (18... cxb6 $17 19. Rxg2 Kh8) 19. Rxg2 {[%emt 0:00:30]} Kh8 {[%emt 0:01:48]} 20. Kf1 {[%emt 0:16:51]} Qd6 {[%emt 0:03:57]} (20... Nh5 {looks sharper.} 21. Qd2 Qd6 22. Bb1 Rae8) 21. Kg1 {[%emt 0:01:33]} (21. Bb5 $142) 21... Rae8 {[%emt 0:02:33]} 22. b4 {[%emt 0:00:40]} Re7 {[%emt 0:03:01]} 23. Rg6 {[%emt 0:04:00]} Qd7 {[%emt 0:04:10]} 24. Bf5 {[%emt 0:01:26] Repels Ng4} Qe8 {[%emt 0:00:42] [#] aiming for ...Rxe3.} 25. Rg3 {[%emt 0:12:43]} (25. Kh1 $17 {is a better defense.}) 25... Ne4 $19 {[%emt 0:11:26]} 26. Bxe4 {[%emt 0:02:46]} Rxe4 {[%emt 0:00:48]} (26... dxe4 27. Qd1 (27. d5 $2 Ne5 $19)) 27. b5 {[%emt 0:01:39] [#]} (27. Kh1 {was necessary.}) 27... Ne7 $1 {[%emt 0:00:48]} ({Less strong is} 27... Nxd4 28. Bxd4 Rxd4 29. Qxc7 $19) 28. Qxc7 {[%emt 0:01:30]} Nf5 {[%emt 0:00:24]} ({Don't play} 28... Qxb5 29. Qd6 Rf6 30. Qc7) 29. Rg2 {[%emt 0:00:36]} Re7 {[%emt 0:00:33]} ({Resist} 29... Qxb5 30. Qc2 $19) 30. Qxb6 {[%emt 0:04:31]} (30. Qc3) 30... Rxe3 {[%emt 0:00:47] Weighted Error Value: White=0.57/Black=0.23 (precise) .  Mistake:       	White=5     	Black=1      Inaccurate:     	White=2     	Black=3      OK:         	White=3     	Black=5      Best:        	White=2     	Black=4      Strong:       	---       	Black=1} 0-1

[Event "French-ch U12-U14 2024"]
[Site "Agen"]
[Date "2024.04.18"]
[Round "6.19"]
[White "Boulos, Paul"]
[Black "Plaidit, Hugo"]
[Result "1/2-1/2"]
[ECO "B44"]
[WhiteElo "2189"]
[BlackElo "1981"]
[Annotator "TA"]
[PlyCount "78"]
[EventDate "2024.04.14"]
[EventType "swiss"]
[EventCountry "FRA"]
[SourceTitle "playchess.com"]
[Source "ChessBase"]
[SourceQuality "1"]
[TimeControl "5400+30"]

{[%evp 13,78,0,0,0,0,-10,0,-18,6,-29,-16,-24,0,-58,-56,-86,-105,-100,-99,-94,-107,-93,-110,-108,-109,-92,-43,-97,-102,-94,-67,-215,-40,-35,-19,-16,-28,-14,-14,-25,-15,-41,-42,-39,-35,-50,-51,-54,-36,-46,-31,-62,-56,-65,-29,-30,-25,-25,0,0,0,0,0,-9,0,0,0]} 1. e4 {[%emt 0:00:13]} c5 {[%emt 0:00:11]} 2. Nf3 {[%emt 0:00:20]} e6 {[%emt 0:00:09]} 3. d4 {[%emt 0:00:44]} cxd4 {[%emt 0:00:09]} 4. Nxd4 {[%emt 0:00:15]} Nf6 {[%emt 0:01:10][%cal Bg8f6,Bf6d5,Bd5c3][%mdl 32]} 5. Bd3 {[%emt 0:01:52]} Nc6 {[%emt 0:01:09]} 6. Nxc6 {[%emt 0:02:06]} bxc6 {[%emt 0:00:02]} 7. c4 {[%emt 0:02:02]} d5 {[%emt 0:09:10]} 8. exd5 {[%emt 0:04:17]} cxd5 {[%emt 0:01:48]} 9. cxd5 {[%emt 0:00:55]} Nxd5 {[%emt 0:02:14]} 10. O-O {[%emt 0:05:49]} Be7 {[%emt 0:04:19]} 11. Qe2 {[%emt 0:08:28]} O-O {[%emt 0:02:13]} 12. Rd1 {[%emt 0:03:23]} Bb7 {[%emt 0:02:25]} 13. Qe4 {[%emt 0:09:54]} (13. Nc3 $11) 13... g6 $15 {[%emt 0:02:27][%cal Od5c3]} 14. Bh6 {[%emt 0:01:07] [#]} Nc3 $1 {[%emt 0:24:19]} 15. Qxb7 {[%emt 0:07:04]} Nxd1 {[%emt 0:01:19]} 16. Bxf8 {[%emt 0:00:55]} ({Don't go for} 16. Qb3 $2 Nxf2 17. Kxf2 Rb8 $19) 16... Bxf8 {[%emt 0:00:16]} 17. Nc3 {[%emt 0:01:11]} ({But not} 17. Qb3 $2 Nxf2 (17... Nxb2 $2 18. Ba6 $19) 18. Kxf2 Rb8 $19) 17... Nxc3 {[%emt 0:11:36]} 18. bxc3 {[%emt 0:00:19]} Rc8 {[%emt 0:00:54]} 19. c4 {[%emt 0:11:58]} Bc5 {[%emt 0:03:59]} ({Black should play} 19... Rb8 $17 20. Qxa7 Bg7) 20. Rd1 {[%emt 0:03:33]} (20. Rb1 $15) 20... Rb8 $17 {[%emt 0:05:20]} 21. Qf3 {[%emt 0:01:15][%cal Od3g6]} Qg5 {[%emt 0:04:43]} 22. Bc2 {[%emt 0:04:19]} (22. Qe2 $15) 22... Kg7 $2 {[%emt 0:04:46] [#]} (22... Rb2 $19 23. Qc3 Rxa2) 23. Rd7 {[%emt 0:04:11]} Qf6 {[%emt 0:00:52]} (23... Be7 {feels hotter.} 24. g3 Rb2 25. Bb3 h5) 24. Qxf6+ {[%emt 0:00:38]} Kxf6 $11 {[%emt 0:00:03][%mdl 4096] Endgame. KRB-KRB} 25. Bb3 $1 {[%emt 0:01:33]} Bb6 {[%emt 0:04:49]} 26. Kf1 {[%emt 0:02:54]} Rc8 {[%emt 0:00:06]} 27. Ke2 {[%emt 0:01:17]} Rc5 {[%emt 0:00:27]} 28. f3 {[%emt 0:02:35]} Re5+ {[%emt 0:01:26]} 29. Kd2 {[%emt 0:01:47]} Rg5 {[%emt 0:00:09]} 30. g4 {[%emt 0:00:58]} Re5 {[%emt 0:01:17]} 31. Rb7 {[%emt 0:02:19]} h5 {[%emt 0:01:32]} 32. h3 {[%emt 0:01:03]} h4 $1 {[%emt 0:01:19]} 33. Bc2 {[%emt 0:03:06]} Ra5 {[%emt 0:00:51]} 34. a4 {[%emt 0:01:45]} Rc5 {[%emt 0:00:11]} 35. Bd3 {[%emt 0:01:12]} Rc7 {[%emt 0:00:23]} 36. Rxc7 {[%emt 0:00:54] The position is equal.} Bxc7 {[%emt 0:00:01]} 37. Ke3 {[%emt 0:01:02]} Bb6+ {[%emt 0:00:29]} 38. Ke4 {[%emt 0:01:23]} g5 {[%emt 0:02:30]} 39. f4 {[%emt 0:02:21]} gxf4 {[%emt 0:00:44] Weighted Error Value: White=0.16 (very precise) /Black=0.17 (very precise) .  Missed win:     	---       	Black=1      Mistake:       	White=3     	Black=1      Inaccurate:     	White=4     	Black=1      OK:         	White=11    	Black=10     Best:        	White=1     	Black=2      Strong:       	White=1     	Black=1      Brilliant:      	---       	Black=1} 1/2-1/2

[Event "French-ch U12-U14 2024"]
[Site "Agen"]
[Date "2024.04.18"]
[Round "6.20"]
[White "Auribault, Louis"]
[Black "El Zein, Zayne-Eddine"]
[Result "1-0"]
[ECO "E06"]
[WhiteElo "2137"]
[BlackElo "1959"]
[Annotator "TA"]
[PlyCount "73"]
[EventDate "2024.04.14"]
[EventType "swiss"]
[EventCountry "FRA"]
[SourceTitle "playchess.com"]
[Source "ChessBase"]
[SourceQuality "1"]
[TimeControl "5400+30"]

{[%evp 14,73,27,9,16,36,42,36,34,45,33,30,93,101,95,95,109,116,170,139,147,147,232,237,342,356,579,360,456,531,519,525,531,528,528,545,537,541,530,545,545,538,534,506,491,305,1086,1298,1288,1288,1200,1158,1481,808,2107,2102,29993,29994,29996,29997,29997,29998]} 1. Nf3 {[%emt 0:00:07]} d5 {[%emt 0:00:18]} 2. d4 {[%emt 0:00:06]} Nf6 {[%emt 0:00:46]} 3. c4 {[%emt 0:00:07]} e6 {[%emt 0:00:46]} 4. g3 {[%emt 0:00:07]} Be7 {[%emt 0:00:39]} 5. Bg2 {[%emt 0:00:16]} O-O {[%emt 0:00:32]} 6. O-O {[%emt 0:00:09]} dxc4 {[%emt 0:01:44]} 7. Qc2 {[%emt 0:00:36]} c6 {[%emt 0:01:02]} 8. Qxc4 {[%emt 0:04:45]} b5 {[%emt 0:01:00]} 9. Qc2 {[%emt 0:02:20]} Qb6 {[%emt 0:11:21]} 10. Bg5 {[%emt 0:04:11]} Bb7 {[%emt 0:03:49] White is slightly better.} 11. Nbd2 {[%emt 0:02:44][%cal Bb1d2,Bd2b3,Bb3c5][%mdl 32]} Nbd7 {[%emt 0:01:49]} 12. Ne5 {[%emt 0:06:18] Hoping for Nxd7.} Rfd8 {[%emt 0:20:27]} (12... Qxd4 $11 {keeps the balance.} 13. Ndf3 (13. Nxc6 Bxc6 14. Be3 Qe5 $14) 13... Qc5 14. Qxc5 Bxc5 (14... Nxc5 15. Nd4 $14)) 13. Nb3 $16 {[%emt 0:08:34] White has more active pieces.} (13. Bxc6 $2 Rac8 14. Ndc4 Rxc6 (14... bxc4 $2 15. Bxd7 Rxd7 16. Bxf6 $19) 15. Nxb6 Rxc2 $19) (13. Nxd7 {simplifies} Rxd7 14. Nb3 a5 15. Bxf6 Bxf6 16. e3) 13... Rac8 {[%emt 0:03:59]} 14. Rac1 {[%emt 0:12:58]} (14. Nxd7 {simplifies} Rxd7 15. Rac1 h6 16. Bxf6 Bxf6 17. e3) 14... Nb8 {[%emt 0:12:07]} 15. a3 {[%emt 0:14:36]} Nd5 {[%emt 0:07:39]} (15... a5 $16) 16. Bxe7 {[%emt 0:02:43]} (16. Nxf7 Kxf7 17. h4 (17. Bxe7 Nxe7 18. Rfe1 Ng6 $15) 17... Kg8 $15) 16... Nxe7 {[%emt 0:00:11]} 17. e3 {[%emt 0:02:47]} ({Much weaker is} 17. Nxf7 $6 Kxf7 18. Qxh7 Rh8 $11) 17... Ba8 {[%emt 0:06:07]} (17... Nd7 $16 {was called for.}) 18. Nc5 $18 {[%emt 0:07:02]} ({Not} 18. Nxf7 Kxf7 19. Qxh7 Rh8 $14) 18... a5 {[%emt 0:01:22]} (18... Na6 $142 19. Ne4 h6) 19. Bh3 {[%emt 0:01:53][%cal Oe5f7] Threatens to win with Nxf7!} (19. Nxf7 Kxf7 20. Qxh7 Nd7 21. Qh5+ Kg8 $16) 19... g6 $2 {[%emt 0:06:33]} (19... Rf8 {is a better defense.} 20. Ned7 Nxd7) 20. Qe4 {[%emt 0:02:46][%cal Oe5f7] Nxf7! would now be deadly.} Nf5 {[%emt 0:06:18] [#]} 21. Nxf7 $1 {[%emt 0:04:16][%mdl 512]} Kxf7 {[%emt 0:00:23]} 22. Qxe6+ {[%emt 0:00:05]} Kg7 {[%emt 0:01:16]} 23. Qe5+ {[%emt 0:00:07]} Kg8 {[%emt 0:04:22]} 24. Bxf5 {[%emt 0:00:59]} gxf5 {[%emt 0:00:22]} 25. Qe6+ {[%emt 0:00:30]} Kh8 {[%emt 0:01:06]} 26. Qf6+ {[%emt 0:00:32]} Kg8 {[%emt 0:00:07]} 27. Ne6 {[%emt 0:00:22]} Rd7 {[%emt 0:01:06] Dodges Qg7+} 28. Qg5+ {[%emt 0:04:26]} Kh8 {[%emt 0:01:40]} 29. Qxf5 {[%emt 0:01:05] aiming for Qf6+. Black is weak on the dark squares} Re8 $2 {[%emt 0:02:06]} (29... Qb7 30. Qf6+ Rg7 31. Qxg7+ Qxg7 32. Nxg7 Kxg7) 30. Qf6+ {[%emt 0:00:08]} Kg8 {[%emt 0:00:14][%cal Bh8g8,Bg8f7,Bf7e6][%mdl 32]} 31. Rc5 {[%emt 0:00:07]} Qxc5 {[%emt 0:03:58]} 32. dxc5 {[%emt 0:00:28]} Bb7 {[%emt 0:00:24]} 33. Kg2 {[%emt 0:00:25][%cal Of1d1] Threatening mate with Rd1!} Bc8 {[%emt 0:00:18] [#]} 34. Rd1 $3 {[%emt 0:00:06][%mdl 512] Intending Rxd7 and mate.} Rde7 {[%emt 0:01:05]} (34... Rxe6 35. Qxe6+) 35. Qg5+ {[%emt 0:00:33] White mates.} Kf7 {[%emt 0:00:24]} 36. Qg7+ {[%emt 0:00:10]} Kxe6 {[%emt 0:00:18]} 37. Rd6+ {[%emt 0:00:06] Black got outplayed after the opening.   Weighted Error Value: White=0.23 (precise) /Black=0.55.  Mistake:       	---       	Black=6      Inaccurate:     	White=2     	---        OK:         	White=13    	Black=6      Best:        	White=3     	Black=3} 1-0

[Event "French-ch U12-U14 2024"]
[Site "Agen"]
[Date "2024.04.19"]
[Round "7.1"]
[White "Benhadid, Jeilynn"]
[Black "Alcantara, Levanah"]
[Result "0-1"]
[ECO "D35"]
[WhiteElo "1844"]
[BlackElo "1756"]
[Annotator "NA RC COMBH"]
[PlyCount "72"]
[EventDate "2024.04.14"]
[EventType "swiss"]
[EventCountry "FRA"]
[SourceTitle "playchess.com"]
[Source "ChessBase"]
[SourceQuality "1"]
[TimeControl "5400+30"]

1. d4 {[%emt 0:00:09]} d5 {[%emt 0:00:36]} 2. c4 {[%emt 0:00:16]} e6 {[%emt 0:00:33]} 3. Nc3 {[%emt 0:00:14]} Be7 {[%emt 0:00:18]} 4. cxd5 {[%emt 0:00:44]} exd5 {[%emt 0:00:15]} 5. Bf4 {[%emt 0:00:50]} Nf6 {[%emt 0:00:22]} 6. e3 {[%emt 0:00:42]} O-O {[%emt 0:00:16]} 7. Bd3 {[%emt 0:00:22]} a6 {[%emt 0:01:37]} 8. Nge2 {[%emt 0:01:46]} Nbd7 {[%emt 0:00:44]} 9. O-O {[%emt 0:00:51]} c5 {[%emt 0:01:54]} 10. Rc1 {[%emt 0:06:18]} b5 {[%emt 0:06:14]} 11. a3 {[%emt 0:09:52]} Bb7 {[%emt 0:08:33]} 12. Bb1 {[%emt 0:05:12]} Qb6 {[%emt 0:02:29]} 13. dxc5 {[%emt 0:04:01]} Nxc5 {[%emt 0:04:44]} 14. b4 {[%emt 0:05:56]} Ne6 {[%emt 0:05:23]} 15. Bg3 {[%emt 0:04:57]} Rfd8 {[%emt 0:02:10]} 16. Nd4 {[%emt 0:01:04]} Nxd4 {[%emt 0:02:21]} 17. exd4 {[%emt 0:01:02]} Rac8 {[%emt 0:01:37]} 18. f3 {[%emt 0:07:46]} Rc4 {[%emt 0:06:44]} 19. Ne2 {[%emt 0:01:10]} Rdc8 {[%emt 0:02:10]} 20. Qd2 {[%emt 0:01:26]} a5 {[%emt 0:20:09]} 21. Ba2 {[%emt 0:12:25]} Rxc1 {[%emt 0:03:23]} 22. Rxc1 {[%emt 0:00:31]} axb4 {[%emt 0:01:27]} 23. axb4 {[%emt 0:00:31]} Qa6 {[%emt 0:02:00]} 24. Rxc8+ {[%emt 0:09:48]} Bxc8 {[%emt 0:00:13]} 25. Bb3 {[%emt 0:02:03]} Bf5 {[%emt 0:04:37]} 26. Nf4 {[%emt 0:02:19]} Qa3 {[%emt 0:04:50]} 27. Bxd5 {[%emt 0:03:16]} Bxb4 {[%emt 0:01:08]} 28. Qe2 {[%emt 0:09:09]} Nxd5 {[%emt 0:05:06]} 29. Nxd5 {[%emt 0:01:13]} Qa1+ {[%emt 0:00:22]} 30. Kf2 {[%emt 0:02:26]} Qxd4+ {[%emt 0:00:25]} 31. Ne3 {[%emt 0:00:16]} Bc5 {[%emt 0:01:03]} 32. Bf4 {[%emt 0:00:27]} Qxf4 {[%emt 0:00:12]} 33. g3 {[%emt 0:00:24]} Qxe3+ {[%emt 0:00:11]} 34. Qxe3 {[%emt 0:00:03]} Bxe3+ {[%emt 0:00:06]} 35. Kxe3 {[%emt 0:00:03]} Kf8 {[%emt 0:00:33]} 36. Kd4 {[%emt 0:00:04]} Bd7 {[%emt 0:00:15]} 0-1

[Event "French-ch U12-U14 2024"]
[Site "Agen"]
[Date "2024.04.19"]
[Round "7.4"]
[White "Dermoum, Lina"]
[Black "Duchatel, Cyrielle"]
[Result "0-1"]
[ECO "A07"]
[WhiteElo "1405"]
[BlackElo "1646"]
[Annotator "NA RC COMBH"]
[PlyCount "56"]
[EventDate "2024.04.14"]
[EventType "swiss"]
[EventCountry "FRA"]
[SourceTitle "playchess.com"]
[Source "ChessBase"]
[SourceQuality "1"]
[TimeControl "5400+30"]

1. Nf3 {[%emt 0:00:01]} d5 {[%emt 0:00:22]} 2. g3 {[%emt 0:00:09]} e6 {[%emt 0:00:28]} 3. Bg2 {[%emt 0:00:12]} Nf6 {[%emt 0:00:27]} 4. O-O {[%emt 0:00:10]} Be7 {[%emt 0:00:58]} 5. e3 {[%emt 0:00:10]} O-O {[%emt 0:00:29]} 6. d4 {[%emt 0:00:25]} b6 {[%emt 0:00:35]} 7. Nc3 {[%emt 0:00:34]} Nbd7 {[%emt 0:01:09]} 8. Re1 {[%emt 0:00:25]} Bb7 {[%emt 0:00:58]} 9. Qd3 {[%emt 0:00:33]} c5 {[%emt 0:02:19]} 10. Ne5 {[%emt 0:04:03]} Nxe5 {[%emt 0:03:36]} 11. dxe5 {[%emt 0:00:09]} Nd7 {[%emt 0:02:23]} 12. f4 {[%emt 0:04:14]} a6 {[%emt 0:04:22]} 13. Ne2 {[%emt 0:04:19]} b5 {[%emt 0:03:27]} 14. c3 {[%emt 0:06:58]} Bc6 {[%emt 0:09:17]} 15. Bd2 {[%emt 0:05:23]} a5 {[%emt 0:04:30]} 16. a3 {[%emt 0:02:03]} c4 {[%emt 0:06:54]} 17. Qc2 {[%emt 0:00:23]} Nc5 {[%emt 0:00:25]} 18. b4 {[%emt 0:01:01]} cxb3 {[%emt 0:00:55]} 19. Qb1 {[%emt 0:00:40]} a4 {[%emt 0:01:21]} 20. Nd4 {[%emt 0:00:43]} Be8 {[%emt 0:01:39]} 21. e4 {[%emt 0:02:00]} dxe4 {[%emt 0:01:34]} 22. Bxe4 {[%emt 0:00:14]} Nxe4 {[%emt 0:00:25]} 23. Qxe4 {[%emt 0:00:10]} Bc5 {[%emt 0:01:41]} 24. Be3 {[%emt 0:00:33]} Bxd4 {[%emt 0:01:43]} 25. Bxd4 {[%emt 0:00:29]} Rc8 {[%emt 0:00:33]} 26. Red1 {[%emt 0:01:24]} Bc6 {[%emt 0:02:20]} 27. Qe3 {[%emt 0:00:17]} Qd5 {[%emt 0:02:19]} 28. Qf2 {[%emt 0:00:50]} Qh1# {[%emt 0:00:06]} 0-1